bitfinex/quotes_ETHUSD_20251107
["timestamp","ask_amount","ask_price","bid_price","bid_amount"]
[1762480662009,0.1665,3316.1,3315.3,3.01631828]
[1762480662211,3.0156898,3316.0,3315.3,0.405504]
[1762480662412,0.1665,3316.0,3315.3,0.405504]
[1762480662611,5.81898159,3316.0,3314.7,0.4772]
[1762480662835,0.1665,3315.9,3315.0,3.42209272]
[1762480663144,1.426212,3315.9,3315.0,0.405504]
[1762480663446,1.426212,3315.9,3314.8,0.1902]
[1762480663637,0.1665,3315.8,3314.8,0.1902]
[1762480663948,0.002,3315.7,3314.9,0.405504]
[1762480664150,3.01628746,3315.4,3314.8,0.1902]
[1762480664443,0.1665,3315.6,3314.5,0.1902]
[1762480665043,3.01798358,3315.7,3314.9,0.405504]
[1762480665345,0.002,3315.7,3315.1,0.405504]
[1762480665644,0.002,3315.7,3315.0,0.405504]
[1762480665844,3.01604536,3315.6,3314.7,0.405504]
[1762480666031,3.01613898,3315.5,3314.9,0.405504]
[1762480666342,0.002,3315.7,3314.8,0.405504]
[1762480666549,0.002,3315.7,3314.7,0.405504]
[1762480666720,3.01636808,3315.3,3314.3,0.405504]
[1762480666921,0.002,3315.7,3314.8,0.405504]
[1762480667113,3.01801686,3315.7,3315.1,0.405504]
[1762480667314,0.002,3315.7,3315.2,0.03016409]
[1762480667541,0.002,3315.7,3315.6,3.87704936]
[1762480667937,0.002,3315.7,3315.6,4.35424936]
[1762480668177,0.002,3315.7,3315.6,5.09129703]
[1762480668379,3.01466411,3317.2,3316.5,0.405504]
[1762480668581,0.1685,3317.0,3316.5,3.42072165]
[1762480669085,0.1685,3317.0,3316.5,0.882704]
[1762480669284,0.1685,3317.8,3316.9,0.4555]
[1762480669577,1.428212,3317.8,3317.4,0.1504]
[1762480669877,3.01422886,3317.6,3317.4,0.1504]
[1762480670177,0.1685,3317.5,3317.4,0.1504]
[1762480670362,3.01413639,3317.7,3317.4,0.1504]
[1762480670677,0.1685,3317.8,3317.4,0.1504]
[1762480671194,3.62228476,3319.9,3317.4,0.1504]
[1762480671195,0.2197,3318.2,3317.6,0.1504]
[1762480671481,3.23338712,3318.2,3317.7,0.03014136]
[1762480671685,3.23338712,3318.2,3317.6,0.1504]
[1762480671838,0.1685,3317.7,3315.8,0.1902]
[1762480672041,5.98748159,3317.6,3316.2,0.4772]
[1762480672245,5.98748159,3317.6,3316.5,0.4772]
[1762480672447,5.98748159,3317.6,3316.6,0.405504]
[1762480672448,9.00178851,3317.6,3316.6,0.405504]
[1762480672645,0.1685,3317.6,3316.6,0.405504]
[1762480672880,0.1685,3317.6,3316.6,3.89782944]
[1762480673148,1.259712,3317.7,3317.1,0.405504]
[1762480673468,0.1685,3318.5,3317.4,0.405504]
[1762480673469,1.259712,3317.9,3317.4,0.405504]
[1762480673675,3.0137828,3318.1,3317.4,3.41987096]
[1762480673849,1.259712,3318.0,3317.4,3.41987096]
[1762480674051,1.259712,3318.0,3317.5,3.01430903]
[1762480674251,0.1685,3318.2,3317.6,0.03014227]
[1762480674472,0.1685,3318.2,3317.5,0.405504]
[1762480674680,0.1685,3318.2,3317.5,0.882704]
[1762480674887,3.18226,3318.2,3317.5,0.882704]
[1762480675101,0.1685,3318.2,3317.5,0.882704]
[1762480675458,1.259712,3318.7,3318.1,0.6457]
[1762480675663,0.1685,3319.9,3318.6,0.405504]
[1762480676009,0.1685,3319.9,3318.8,3.01313727]
[1762480676164,0.1685,3320.6,3319.8,0.4555]
[1762480676519,0.1685,3320.6,3319.4,0.405504]
[1762480676520,5.98748159,3320.6,3319.4,0.405504]
[1762480676661,9.16750137,3320.6,3319.2,0.4772]
[1762480676868,4.4398174,3320.5,3319.5,3.01242795]
[1762480677061,1.259712,3320.5,3319.6,3.01241113]
[1762480677283,5.98748159,3320.6,3319.5,0.405504]
[1762480677609,3.01045388,3321.8,3316.4,4.11578194]
[1762480677610,3.17952759,3321.2,3320.5,0.1902]
[1762480677899,3.17952759,3321.2,3320.1,3.01193535]
[1762480677900,3.01121649,3321.0,3320.1,0.4772]
[1762480678095,0.1685,3320.6,3319.5,0.405504]
[1762480678298,0.1685,3320.6,3319.5,3.41798648]
[1762480678483,3.01162058,3320.5,3319.6,0.405504]
[1762480678715,3.01169642,3320.4,3319.6,0.405504]
[1762480679000,3.01160503,3320.5,3319.6,0.405504]
[1762480679206,4.27096634,3320.9,3319.5,0.4772]
[1762480679364,3.01257901,3319.5,3318.5,0.4772]
[1762480679571,0.1685,3319.6,3318.1,0.1902]
[1762480679878,0.1685,3319.7,3318.5,3.01339556]
[1762480680196,0.1685,3319.7,3318.4,0.4772]
[1762480680399,0.1685,3318.7,3317.6,3.01420307]
[1762480680601,3.01331886,3318.6,3317.6,0.4772]
[1762480680763,0.1685,3318.7,3317.6,0.4772]
[1762480680966,5.81898159,3318.9,3317.7,3.01413629]
[1762480681163,3.0132413,3318.7,3317.6,0.4772]
[1762480681368,0.1685,3320.1,3317.6,0.4772]
[1762480681570,4.27195092,3319.8,3318.8,0.1902]
[1762480681801,1.259712,3319.8,3319.0,3.0129462]
[1762480682019,5.81898159,3319.4,3318.3,0.405504]
[1762480682318,5.81898159,3319.4,3318.8,0.1504]
[1762480682319,3.01269157,3319.3,3318.8,0.1504]
[1762480682528,5.87018159,3319.4,3318.8,0.1504]
[1762480682730,3.01286789,3319.1,3318.8,0.1504]
[1762480683022,3.01292218,3319.1,3318.8,0.1504]
[1762480683231,3.18154649,3318.9,3318.8,0.1504]
[1762480683396,6.03868159,3319.4,3318.8,0.1504]
[1762480683397,5.87018159,3319.4,3318.8,0.1504]
[1762480684082,5.98748159,3318.9,3318.8,0.1504]
[1762480684414,5.81898159,3318.9,3318.1,0.1902]
[1762480684618,5.98748159,3320.4,3319.3,3.01266953]
[1762480684784,5.98748159,3320.4,3319.2,0.4555]
[1762480684988,3.01191998,3320.2,3319.3,3.20280272]
[1762480685182,5.98748159,3320.4,3319.4,3.01251602]
[1762480685481,5.81898159,3320.4,3319.4,3.89528894]
[1762480685716,5.81898159,3320.4,3319.5,3.01250188]
[1762480685896,3.01147487,3320.7,3319.6,0.405504]
[1762480686193,3.01147487,3320.7,3319.8,3.01222965]
[1762480686414,5.81898159,3320.9,3320.0,3.0119844]
[1762480686616,3.01132257,3320.8,3320.0,3.0119844]
[1762480686921,1.259712,3320.8,3320.1,0.1902]
[1762480687212,4.27103548,3320.8,3320.1,0.1902]
[1762480687416,3.01148405,3320.7,3320.1,0.1902]
[1762480687616,3.01151141,3320.6,3320.1,0.1902]
[1762480687816,0.1685,3320.2,3319.1,0.1902]
[1762480688021,5.81898159,3320.4,3319.1,0.1902]
[1762480688022,3.01228895,3319.8,3319.1,0.1902]
[1762480688220,5.81898159,3320.5,3319.2,0.882704]
[1762480688405,5.81898159,3320.5,3319.3,3.01266801]
[1762480688582,5.81898159,3320.5,3319.5,3.01248459]
[1762480688917,3.01180343,3320.3,3319.5,3.01248459]
[1762480689115,3.01172226,3320.4,3319.2,0.882704]
[1762480689290,8.83057919,3320.5,3319.8,3.01218158]
[1762480689496,5.81898159,3323.0,3320.4,0.1902]
[1762480689699,0.1685,3322.7,3321.5,0.405504]
[1762480690044,0.1685,3322.7,3321.6,3.0105973]
[1762480690220,0.1685,3322.7,3321.8,3.01034569]
[1762480690394,0.1685,3322.7,3321.9,3.0103204]
[1762480690597,0.1685,3322.7,3322.0,3.01019512]
[1762480690917,0.1685,3322.7,3321.1,1.259712]
[1762480690918,3.00978179,3322.5,3321.2,0.405504]
[1762480691097,3.00978179,3322.5,3321.6,3.01052927]
[1762480691496,3.01021122,3322.1,3321.2,0.467]
[1762480691709,3.01039278,3321.9,3320.5,0.405504]
[1762480692018,1.428212,3322.5,3320.8,0.405504]
[1762480692222,4.43799925,3322.5,3321.4,3.01070684]
[1762480692420,3.01005581,3322.2,3321.4,3.01075706]
[1762480692598,1.259712,3322.3,3321.0,0.405504]
[1762480692801,3.01020801,3322.1,3321.1,3.01103353]
[1762480692998,3.01020801,3322.1,3321.0,3.41662944]
[1762480693202,5.55448019,3322.0,3320.6,0.405504]
[1762480693401,3.01032541,3321.9,3320.7,0.405504]
[1762480693719,3.01032541,3321.9,3320.8,3.01132257]
[1762480693930,5.5214473,3322.0,3321.1,3.01097875]
[1762480694137,5.5214473,3322.0,3320.4,3.20183864]
[1762480694138,3.01056773,3321.7,3321.2,0.1504]
[1762480694308,0.0512,3321.8,3321.2,0.1504]
[1762480694710,3.01022071,3322.1,3321.2,3.010954]
[1762480695036,3.01034135,3321.9,3321.0,3.01105616]
[1762480695198,3.01056987,3321.7,3320.7,0.405504]
[1762480695396,3.01061188,3321.6,3320.7,0.405504]
[1762480695597,3.01061188,3321.6,3320.4,0.1902]
[1762480695598,0.03303289,3321.5,3320.4,0.1902]
[1762480695923,3.01120635,3321.0,3320.2,0.1928]
[1762480696248,3.01120635,3321.0,3320.2,3.20460313]
[1762480696434,5.3529473,3321.4,3320.2,0.1928]
[1762480696630,3.01111812,3321.1,3320.4,3.01165431]
[1762480696945,3.01087452,3321.3,3320.6,3.01144272]
[1762480697633,5.3529473,3321.4,3320.7,3.01140539]
[1762480697931,8.36378768,3321.4,3320.7,3.01140539]
[1762480698131,5.3529473,3321.4,3320.2,0.6598]
[1762480698496,3.01121655,3321.0,3320.2,0.1928]
[1762480698698,3.01121655,3321.0,3320.3,3.01176196]
[1762480698909,0.1685,3320.3,3319.5,3.01242409]
[1762480699140,0.1685,3320.3,3319.7,3.01225369]
[1762480699326,0.1685,3320.3,3319.7,3.01228862]
[1762480699519,0.1685,3320.3,3319.3,0.467]
[1762480699745,5.3529473,3320.8,3319.8,3.01214645]
[1762480700447,5.3529473,3321.4,3319.9,0.03012138]
[1762480700645,3.01129328,3320.9,3319.9,0.467]
[1762480700812,1.259712,3321.2,3320.3,3.01177217]
[1762480700813,3.01117538,3321.0,3320.3,3.01177217]
[1762480701443,1.430212,3321.3,3320.1,0.1928]
[1762480701769,1.261712,3321.3,3320.7,3.01141149]
[1762480701942,0.002,3321.3,3320.9,3.01116987]
[1762480702144,0.002,3321.3,3320.3,0.405504]
[1762480702342,0.002,3321.3,3320.4,0.467]
[1762480702545,0.002,3321.3,3321.2,3.01095989]
[1762480703443,0.002,3321.3,3319.2,3.01269791]
[1762480703643,0.002,3321.3,3320.5,0.405504]
[1762480703885,0.002,3321.3,3321.2,3.41646389]
[1762480704191,0.002,3321.3,3321.2,4.34656389]
[1762480704765,0.002,3321.3,3321.2,1.486004]
[1762480704966,0.002,3321.3,3321.2,1.335604]
[1762480705140,0.002,3321.3,3321.2,4.34656389]
[1762480706369,0.002,3321.3,3321.2,3.01095989]
[1762480706536,0.002,3321.3,3321.0,3.01105838]
[1762480707233,0.002,3321.3,3320.9,3.41670141]
[1762480707461,0.002,3321.3,3321.0,3.01112654]
[1762480707963,0.002,3321.3,3320.8,3.41681368]
[1762480708167,0.002,3321.3,3321.0,3.47810699]
[1762480708480,0.002,3321.3,3321.0,3.01110475]
[1762480708692,0.002,3321.3,3320.8,0.405504]
[1762480708967,0.002,3321.3,3320.9,0.467]
[1762480709336,0.002,3321.3,3321.2,0.4631]
[1762480709531,0.1705,3322.9,3321.4,0.405504]
[1762480709770,0.1705,3322.9,3321.7,0.405504]
[1762480709971,0.1705,3322.9,3322.4,3.00979867]
[1762480710133,0.1705,3322.9,3321.7,0.467]
[1762480710334,0.1705,3323.2,3321.8,0.405504]
[1762480710573,3.00980143,3322.5,3321.3,1.218]
[1762480710773,0.1705,3322.9,3321.4,0.872504]
[1762480710977,3.0098415,3322.5,3321.7,3.01042539]
[1762480711184,0.1705,3322.9,3321.8,3.01039913]
[1762480711335,3.00966264,3322.7,3321.5,0.467]
[1762480711536,3.0096585,3322.7,3322.0,3.01021405]
[1762480711733,3.00972809,3322.6,3321.9,3.01029542]
[1762480711936,3.00979232,3322.5,3321.8,3.01038433]
[1762480712135,3.00979232,3322.5,3321.6,3.47758447]
[1762480712136,0.1705,3322.9,3321.6,0.467]
[1762480712333,3.00971142,3322.6,3321.9,3.01026476]
[1762480712635,3.00943061,3322.9,3322.0,0.03010234]
[1762480712876,4.43944254,3323.2,3322.5,3.00976299]
[1762480712877,0.1705,3323.2,3322.5,3.00976299]
[1762480713176,0.1705,3323.2,3322.7,3.00953217]
[1762480713348,0.1705,3323.2,3322.8,3.00945332]
[1762480713892,0.1705,3323.2,3322.8,3.00947576]
[1762480714075,0.1705,3323.2,3322.7,3.00954031]
[1762480714236,0.1705,3324.0,3323.1,0.1928]
[1762480714569,1.259712,3323.7,3323.1,3.20197742]
[1762480714771,0.1705,3323.9,3322.7,0.1928]
[1762480715135,0.0512,3323.6,3323.1,3.00920741]
[1762480715338,0.0512,3323.6,3323.0,3.15971541]
[1762480716273,0.0512,3323.6,3323.0,0.1504]
[1762480716439,3.00893927,3323.5,3323.0,0.1504]
[1762480717053,0.0512,3323.6,3323.0,0.1504]
[1762480717776,3.00890775,3323.5,3323.0,0.1504]
[1762480718175,0.1705,3323.1,3322.1,0.1928]
[1762480718373,0.1705,3323.1,3321.7,0.4649]
[1762480718374,0.1705,3322.9,3321.7,0.4649]
[1762480718778,3.00993169,3322.4,3321.5,0.75]
[1762480719080,3.00971511,3322.6,3321.6,3.01055152]
[1762480719254,3.0097951,3322.5,3321.6,3.01055152]
[1762480719457,3.00881163,3323.6,3321.6,0.6486211]
[1762480719458,0.1705,3323.6,3321.6,0.6486211]
[1762480719653,1.259712,3323.0,3321.8,0.405504]
[1762480719865,3.00946421,3322.9,3322.2,3.01003487]
[1762480720073,1.259712,3323.2,3321.8,0.870404]
[1762480720285,1.259712,3323.4,3322.3,3.00994919]
[1762480720591,1.259712,3323.4,3322.0,0.405504]
[1762480720797,1.259712,3323.4,3322.4,3.00979603]
[1762480720995,5.5254473,3323.5,3322.0,0.405504]
[1762480720996,6.7851593,3323.5,3322.1,3.20684028]
[1762480721301,0.002,3323.5,3322.8,3.00942998]
[1762480721498,1.261712,3323.5,3322.9,3.00940363]
[1762480721861,0.002,3323.5,3322.7,3.00952682]
[1762480722065,0.002,3323.5,3323.2,3.00914776]
[1762480722294,0.002,3323.5,3322.8,0.4884]
[1762480722687,0.002,3323.5,3323.1,3.00916557]
[1762480722996,0.002,3323.5,3323.1,3.00915326]
[1762480723186,0.002,3323.5,3323.2,3.00906187]
[1762480723390,0.002,3323.5,3323.3,3.00904739]
[1762480723591,0.002,3323.5,3323.3,3.03913796]
[1762480724390,0.002,3323.5,3323.3,3.03911964]
[1762480724608,0.002,3323.5,3323.2,0.405504]
[1762480724903,0.002,3323.5,3323.4,3.00896672]
[1762480725777,0.002,3323.5,3323.4,3.50035638]
[1762480725976,0.002,3323.5,3323.4,0.97978966]
[1762480726176,0.002,3323.5,3323.4,0.4613]
[1762480726390,0.002,3323.5,3323.4,3.47026672]
[1762480727200,0.002,3323.5,3323.4,0.4613]
[1762480727604,0.002,3323.5,3323.4,3.47026672]
[1762480727974,0.002,3323.5,3323.2,0.893904]
[1762480728307,0.002,3323.5,3323.4,3.15936672]
[1762480728485,0.002,3323.5,3323.4,3.62066672]
[1762480728685,0.002,3323.5,3323.4,4.10906672]
[1762480728882,0.002,3323.5,3323.4,4.51457072]
[1762480729084,0.002,3323.5,3323.4,1.505604]
[1762480729287,0.002,3323.5,3323.4,4.51457072]
[1762480730973,0.002,3323.5,3323.4,5.29703072]
[1762480731312,0.1705,3325.5,3323.5,0.405504]
[1762480731525,0.1705,3325.3,3325.1,0.1496]
[1762480731722,0.1705,3325.3,3323.6,0.748]
[1762480731723,0.0512,3325.2,3324.7,0.1496]
[1762480731888,0.0512,3325.2,3324.8,0.03007699]
[1762480732205,3.00655728,3326.1,3324.5,0.1967]
[1762480732206,0.1705,3325.4,3324.5,0.1967]
[1762480732424,3.00685885,3325.8,3324.9,0.405504]
[1762480732589,5.3529473,3326.2,3324.9,0.405504]
[1762480732590,3.00659513,3326.1,3325.2,3.00733418]
[1762480732790,3.00607226,3326.6,3325.1,0.405504]
[1762480733097,3.00607226,3326.6,3325.1,0.893904]
[1762480733098,3.00662961,3326.0,3325.1,0.893904]
[1762480733298,3.00694348,3325.7,3325.1,0.893904]
[1762480733605,0.1705,3326.4,3325.2,0.405504]
[1762480733606,3.00677413,3325.9,3325.2,0.405504]
[1762480733773,3.00670789,3325.9,3325.2,0.405504]
[1762480734316,3.00685578,3325.8,3325.1,0.4884]
[1762480734605,3.00667659,3326.0,3325.1,0.4884]
[1762480734806,1.259712,3326.2,3325.1,0.4884]
[1762480735007,3.0068092,3325.8,3325.1,0.4884]
[1762480735399,1.259712,3326.2,3325.1,0.4884]
[1762480735736,3.00680409,3325.8,3325.1,0.4884]
[1762480735935,3.00686809,3325.8,3325.1,0.4884]
[1762480736238,3.00686809,3325.8,3324.6,0.405504]
[1762480736239,0.03303289,3325.7,3324.6,0.405504]
[1762480736536,5.3529473,3325.8,3324.7,0.4884]
[1762480736706,3.0069655,3325.7,3324.8,0.405504]
[1762480736906,3.00676164,3325.9,3324.8,0.405504]
[1762480736907,3.00677129,3325.9,3324.9,3.00759412]
[1762480737216,3.00689406,3325.7,3324.9,0.4884]
[1762480737425,3.00670673,3325.9,3325.0,0.4884]
[1762480737612,3.00698923,3325.6,3325.0,0.4884]
[1762480738439,0.1705,3326.2,3325.0,0.4884]
[1762480738616,3.00677077,3325.9,3325.0,3.88604273]
[1762480738976,5.3529473,3326.4,3325.0,3.88604273]
[1762480738977,3.00880766,3325.8,3325.0,0.4884]
[1762480739135,0.002,3325.8,3325.1,0.4884]
[1762480739337,3.00694017,3325.7,3325.1,0.4884]
[1762480739539,3.00695138,3325.7,3325.1,0.4884]
[1762480739838,3.00881092,3325.8,3325.1,0.4884]
[1762480740004,3.00689294,3325.7,3325.1,0.4884]
[1762480740540,0.002,3325.8,3325.1,0.4884]
[1762480740746,0.002,3325.8,3325.7,3.46818576]
[1762480741044,0.002,3325.8,3325.7,0.4613]
[1762480741211,0.002,3325.8,3325.7,4.36208976]
[1762480741411,0.1705,3327.3,3325.9,0.405504]
[1762480741714,0.1725,3327.8,3326.0,0.03006614]
[1762480741917,0.1725,3327.8,3326.2,0.405504]
[1762480742246,3.00542654,3327.4,3326.2,0.405504]
[1762480742539,3.00546113,3327.3,3326.3,0.4884]
[1762480742758,0.1725,3327.8,3326.3,0.4884]
[1762480742759,0.1725,3327.7,3326.3,0.4884]
[1762480742958,3.00622007,3326.5,3326.1,0.1967]
[1762480743526,3.00625937,3326.4,3326.1,0.1967]
[1762480743827,0.1725,3326.2,3325.6,0.1967]
[1762480744028,3.00658906,3326.1,3325.6,0.1967]
[1762480744257,3.17894353,3326.2,3325.6,0.1967]
[1762480744462,8.53142977,3326.7,3325.6,0.1967]
[1762480744624,3.0063636,3326.3,3325.6,0.6851]
[1762480744826,5.5254473,3326.7,3325.7,0.03006885]
[1762480745025,0.1481116,3328.3,3325.6,0.6851]
[1762480745026,3.00608848,3326.6,3325.8,0.4884]
[1762480745221,3.00649646,3326.2,3325.8,0.4884]
[1762480745467,1.259712,3327.0,3325.8,0.4884]
[1762480745668,3.00717446,3325.4,3324.9,0.405504]
[1762480745872,5.5254473,3325.9,3324.4,0.1967]
[1762480745873,0.49570384,3325.5,3324.6,0.4884]
[1762480746078,3.00697618,3325.6,3324.0,0.1967]
[1762480746256,5.3529473,3325.2,3324.0,0.1967]
[1762480746440,0.1725,3325.5,3324.1,0.6851]
[1762480746641,5.3529473,3325.7,3324.5,3.00790218]
[1762480746962,0.1725,3327.0,3325.6,0.658]
[1762480747126,3.00614593,3326.6,3325.7,0.03006885]
[1762480747328,8.35861947,3327.1,3325.7,0.03006885]
[1762480747329,0.1725,3326.9,3325.7,0.03006885]
[1762480747658,5.3529473,3326.5,3325.4,0.4884]
[1762480747968,3.00662701,3326.0,3325.4,0.4884]
[1762480748133,3.00679609,3325.8,3325.4,0.4884]
[1762480748751,3.00673494,3325.9,3325.3,0.1967]
[1762480748956,3.0066218,3326.0,3325.3,0.6851]
[1762480749262,3.00685582,3325.8,3325.3,0.6851]
[1762480749965,3.00677201,3325.9,3325.3,0.6851]
[1762480750380,5.76420575,3326.4,3325.3,0.6851]
[1762480750582,5.76420575,3326.8,3325.4,0.48387157]
[1762480750881,5.76420575,3326.8,3325.4,3.86644508]
[1762480751080,5.76420575,3326.8,3325.5,0.40631451]
[1762480751274,3.00640742,3326.3,3325.5,0.4538]
[1762480751474,3.00644111,3326.2,3325.5,0.4538]
[1762480751782,0.1725,3326.7,3325.3,0.1967]
[1762480751990,3.00677436,3325.9,3325.3,0.1967]
[1762480752152,3.00677436,3325.9,3325.3,0.6505]
[1762480752485,3.00677436,3325.9,3325.8,0.1496]
[1762480752848,3.35177436,3325.9,3325.8,0.1496]
[1762480753083,3.35177436,3325.9,3325.3,0.1496]
[1762480753084,0.3962,3325.9,3325.3,0.1496]
[1762480753248,3.17965703,3325.4,3325.3,0.1496]
[1762480753858,5.76420575,3325.8,3325.3,0.1496]
[1762480754081,3.00715703,3325.4,3325.3,0.1496]
[1762480754703,8.94354286,3325.8,3325.3,0.1496]
[1762480754704,3.00690971,3325.7,3325.3,0.1496]
[1762480754852,5.76420575,3325.8,3325.3,0.1496]
[1762480755055,3.00715703,3325.4,3325.3,0.1496]
[1762480755283,0.0512,3325.5,3324.9,0.1496]
[1762480755693,5.76420575,3325.8,3325.0,0.48387518]
[1762480755887,0.1725,3326.2,3325.7,0.4716]
[1762480755888,0.0512,3326.2,3325.7,0.4716]
[1762480756049,3.00659835,3326.1,3325.7,0.6212]
[1762480756401,3.05746565,3326.4,3325.7,0.6212]
[1762480756569,3.00640679,3326.3,3325.7,0.6212]
[1762480756903,0.0512,3326.4,3325.7,0.6212]
[1762480757116,3.00679535,3325.8,3325.7,0.1496]
[1762480757408,0.0512,3326.4,3325.7,0.1496]
[1762480757582,3.00655675,3326.1,3325.7,0.1496]
[1762480757824,0.0512,3326.7,3326.3,0.4716]
[1762480758142,3.00578525,3327.0,3326.4,0.48386253]
[1762480758303,3.05680758,3327.2,3326.4,0.48386253]
[1762480758618,3.00577984,3327.0,3326.6,0.1496]
[1762480758826,0.1725,3327.8,3326.7,0.03005981]
[1762480759005,0.0512,3327.5,3326.9,0.1496]
[1762480759194,3.00546149,3327.3,3326.9,0.1496]
[1762480759497,3.00553527,3327.2,3326.9,0.1496]
[1762480759709,3.00546617,3327.3,3326.9,0.1496]
[1762480759875,3.00552828,3327.3,3326.4,0.4538]
[1762480760072,3.00552828,3327.3,3327.1,0.1496]
[1762480760274,0.0512,3327.6,3327.1,0.1496]
[1762480760473,3.00553017,3327.2,3327.1,0.1496]
[1762480761793,3.00545226,3327.3,3327.1,0.1496]
[1762480762178,3.00553017,3327.2,3327.1,0.1496]
[1762480763630,3.17803017,3327.2,3327.1,0.1496]
[1762480763797,0.37803289,3327.2,3325.5,0.4538]
[1762480764006,5.76420575,3326.8,3325.5,0.4538]
[1762480764208,5.76420575,3326.8,3325.5,0.81812709]
[1762480764411,5.76420575,3326.8,3325.9,3.00670329]
[1762480764724,5.76420575,3326.8,3325.7,0.405504]
[1762480764725,3.0060581,3326.7,3325.7,0.405504]
[1762480764906,3.00623349,3326.5,3325.7,0.405504]
[1762480765115,5.76420575,3326.8,3325.6,0.4538]
[1762480765320,5.76420575,3326.8,3325.4,0.1824]
[1762480765321,3.00658703,3326.1,3325.4,0.1824]
[1762480765821,3.00630305,3326.4,3325.5,0.48387066]
[1762480766184,5.76420575,3326.8,3325.5,0.4538]
[1762480766389,5.76420575,3326.8,3325.6,0.03006976]
[1762480766624,3.00637295,3326.3,3325.6,0.03006976]
[1762480766826,5.76420575,3326.3,3325.3,0.4538]
[1762480767032,3.0059819,3326.7,3325.4,0.48387157]
[1762480767343,3.00618017,3326.5,3325.5,3.00700752]
[1762480767520,3.0059819,3326.7,3325.5,3.41253328]
[1762480767705,3.00604524,3326.7,3325.6,0.4538]
[1762480767902,5.76420575,3326.8,3325.7,0.38663665]
[1762480768243,5.76420575,3326.8,3325.8,3.0368633]
[1762480768536,3.0056796,3327.1,3326.1,3.006448]
[1762480768694,3.0056796,3327.1,3325.8,0.03006795]
[1762480768695,5.76420575,3327.3,3325.8,0.405504]
[1762480768890,3.00598626,3326.7,3325.6,0.405504]
[1762480769090,3.00598626,3326.7,3325.8,0.405504]
[1762480769337,3.00598626,3326.7,3325.8,0.79211759]
[1762480769546,3.00598626,3326.7,3325.5,3.00704596]
[1762480769547,5.76420575,3326.8,3325.6,0.4538]
[1762480769831,5.76420575,3326.6,3325.2,0.859304]
[1762480770031,5.79723864,3326.6,3325.3,0.4538]
[1762480770242,5.96973864,3326.6,3325.3,0.4538]
[1762480770539,5.96973864,3326.6,3325.4,0.405504]
[1762480770540,5.93670575,3326.6,3325.4,0.405504]
[1762480770691,5.76420575,3326.6,3325.4,3.79929495]
[1762480770898,5.76420575,3326.6,3325.4,1.24596791]
[1762480771120,5.76420575,3326.1,3325.1,0.1824]
[1762480771321,3.0068062,3325.8,3325.1,0.1824]
[1762480771708,3.00697215,3325.7,3325.1,0.1824]
[1762480772026,5.76420575,3326.1,3325.1,0.6362]
[1762480772224,3.00698283,3325.6,3325.1,0.6362]
[1762480772429,3.00692006,3325.7,3325.1,0.6362]
[1762480772597,3.00671941,3325.9,3325.1,0.1824]
[1762480772598,3.00671522,3325.9,3325.1,0.1824]
[1762480772823,3.00671522,3325.9,3325.1,0.6362]
[1762480773027,3.00689804,3325.7,3325.1,0.6362]
[1762480773275,3.00661455,3326.0,3325.1,0.6362]
[1762480773421,5.76420575,3327.0,3325.9,0.4716]
[1762480773626,3.00633262,3326.4,3325.9,0.4716]
[1762480773837,0.0512,3326.7,3326.1,0.1496]
[1762480774255,8.76991955,3327.0,3326.2,0.03006433]
[1762480774558,5.81540575,3327.0,3326.4,0.1496]
[1762480774774,5.81540575,3327.5,3326.9,0.1496]
[1762480775065,3.00571085,3327.0,3326.9,0.1496]
[1762480775356,3.00554103,3327.2,3326.9,0.1496]
[1762480775758,5.81540575,3327.5,3326.9,0.1496]
[1762480776058,5.81540575,3327.7,3327.1,0.1496]
[1762480776248,3.00553017,3327.2,3327.1,0.1496]
[1762480776447,3.00527329,3327.5,3327.1,0.1496]
[1762480776761,3.00552187,3327.3,3327.1,0.1496]
[1762480776919,0.0512,3327.7,3327.1,0.1496]
[1762480777123,0.0512,3327.7,3327.1,0.332]
[1762480777332,3.00540545,3327.4,3327.3,0.1496]
[1762480777734,5.93670575,3327.8,3327.3,0.1496]
[1762480777735,3.00528025,3327.5,3327.3,0.1496]
[1762480778059,8.94169616,3327.8,3327.3,0.1496]
[1762480778258,3.00505862,3327.8,3327.3,0.6496]
[1762480778467,0.0512,3327.9,3327.3,0.1496]
[1762480778671,3.00518107,3327.6,3327.3,0.1496]
[1762480778861,0.1725,3328.5,3327.4,0.5]
[1762480779065,3.00444658,3328.4,3327.9,0.1496]
[1762480779221,0.2237,3328.5,3327.9,0.1496]
[1762480779422,0.0512,3328.5,3327.9,0.6496]
[1762480779958,3.00427162,3328.6,3328.1,0.1496]
[1762480780171,5.76420575,3328.4,3327.5,0.5]
[1762480780368,8.76873511,3328.4,3327.5,0.5]
[1762480780570,3.00472065,3328.1,3327.5,0.5]
[1762480780755,5.76420575,3328.4,3327.5,0.5]
[1762480781336,3.0045939,3328.3,3327.5,0.85053155]
[1762480781677,8.76866395,3328.4,3327.5,0.85053155]
[1762480781877,8.76867016,3328.4,3327.5,0.5]
[1762480782064,3.0047405,3328.1,3327.5,0.5]
[1762480782268,3.0046366,3328.2,3327.5,0.5]
[1762480782438,0.1725,3328.8,3327.5,0.5]
[1762480782638,5.76420575,3328.7,3327.5,0.5]
[1762480782833,5.76420575,3328.7,3327.2,0.4612]
[1762480783073,0.1725,3328.9,3327.2,0.4612]
[1762480783074,3.00505062,3327.8,3327.2,0.4612]
[1762480783252,5.76420575,3328.2,3327.2,0.4612]
[1762480783680,3.00508375,3327.7,3327.2,0.4612]
[1762480783891,0.1725,3328.4,3327.2,0.4612]
[1762480784072,5.76420575,3328.6,3327.6,0.4503]
[1762480784234,3.00472844,3328.1,3327.6,0.4503]
[1762480784434,3.00463648,3328.2,3327.6,0.4503]
[1762480784641,5.76420575,3328.7,3327.6,0.9115]
[1762480784935,3.00446186,3328.4,3327.6,0.9115]
[1762480785244,3.00447742,3328.4,3327.7,0.4612]
[1762480785454,3.00453967,3328.3,3327.7,0.4612]
[1762480785658,5.76420575,3328.7,3327.7,0.4612]
[1762480785867,0.345,3328.9,3327.7,3.46622247]
[1762480786074,3.00433011,3328.6,3327.7,4.11336648]